[Event "Titled Tuesday Blitz September 27 Early 2022"]
[White "Sargissyan, Sargis"]
[Black "Rios Escobar, Adan"]
[WhiteFideId "13303210"]
[BlackFideId "3403645"]
[WhiteElo "2102"]
[BlackElo "2328"]
[Result "0-1"]
[Round "11"]
[TimeControl "180+1"]
[Date "2022.09.27"]
[WhiteClock "0:00:01"]
[BlackClock "0:00:10"]

1. c4 {[%clk 0:03:00]}  Nf6 {[%clk 0:03:00]} 2. Nc3 {[%clk 0:03:00]}  g6 {[%clk 0:03:00]} 3. d4 {[%clk 0:02:58]}  Bg7 {[%clk 0:03:00]} 4. e4 {[%clk 0:02:58]}  d6 {[%clk 0:03:00]} 5. Be2 {[%clk 0:02:52]}  O-O {[%clk 0:03:00]} 6. Bg5 {[%clk 0:02:53]}  Na6 {[%clk 0:02:58]} 7. Qd2 {[%clk 0:02:52]}  e5 {[%clk 0:02:43]} 8. d5 {[%clk 0:02:52]}  Qe8 {[%clk 0:02:23]} 9. h4 {[%clk 0:02:48]}  h5 {[%clk 0:01:59]} 10. f3 {[%clk 0:02:05]}  Nh7 {[%clk 0:01:52]} 11. Be3 {[%clk 0:02:03]}  f5 {[%clk 0:01:50]} 12. Nh3 {[%clk 0:02:03]}  f4 {[%clk 0:01:42]} 13. Bf2 {[%clk 0:02:03]}  Bf6 {[%clk 0:01:41]} 14. g3 {[%clk 0:01:25]}  fxg3 {[%clk 0:01:35]} 15. Bxg3 {[%clk 0:01:26]}  Qe7 {[%clk 0:01:35]} 16. O-O-O {[%clk 0:01:17]}  Bxh4 {[%clk 0:01:22]} 17. Bxh4 {[%clk 0:01:12]}  Qxh4 {[%clk 0:01:23]} 18. Rdg1 {[%clk 0:00:46]}  Bxh3 {[%clk 0:01:06]} 19. Rxg6+ {[%clk 0:00:20]}  Kh8 {[%clk 0:00:53]} 20. Bf1 {[%clk 0:00:14]}  Rxf3 {[%clk 0:00:48]} 21. Bxh3 {[%clk 0:00:13]}  Rxh3 {[%clk 0:00:44]} 22. Rf1 {[%clk 0:00:13]}  Rh1 {[%clk 0:00:39]} 23. Rxh1 {[%clk 0:00:10]}  Qxh1+ {[%clk 0:00:40]} 24. Kc2 {[%clk 0:00:11]}  Rg8 {[%clk 0:00:31]} 25. Qh6 {[%clk 0:00:07]}  Rxg6 {[%clk 0:00:23]} 26. Qxg6 {[%clk 0:00:07]}  Qf3 {[%clk 0:00:20]} 27. Qe8+ {[%clk 0:00:05]}  Kg7 {[%clk 0:00:15]} 28. Qd7+ {[%clk 0:00:03]}  Qf7 {[%clk 0:00:11]} 29. Qh3 {[%clk 0:00:03]}  Nc5 {[%clk 0:00:11]} 30. a3 {[%clk 0:00:03]}  Qf2+ {[%clk 0:00:10]} 31. Kb1 {[%clk 0:00:02]}  Qg1+ {[%clk 0:00:09]} 32. Ka2 {[%clk 0:00:02]}  Qg4 {[%clk 0:00:09]} 33. Qf1 {[%clk 0:00:01]}  Nf6 {[%clk 0:00:10]} 0-1


[Site "https://www.chess.com"]

[Event "Titled Tuesday Blitz September 27 Early 2022"]
[White "Schill, William"]
[Black "Saucey, Michel"]
[WhiteFideId "2016710"]
[BlackFideId "601845"]
[WhiteElo "1956"]
[BlackElo "2253"]
[Result "0-1"]
[Round "11"]
[TimeControl "180+1"]
[Date "2022.09.27"]
[WhiteClock "0:00:02"]
[BlackClock "0:00:57"]

1. e4 {[%clk 0:03:00]}  c5 {[%clk 0:02:59]} 2. Nf3 {[%clk 0:02:59]}  e6 {[%clk 0:02:58]} 3. d4 {[%clk 0:02:59]}  cxd4 {[%clk 0:02:58]} 4. Nxd4 {[%clk 0:02:59]}  Nc6 {[%clk 0:02:59]} 5. Nc3 {[%clk 0:02:58]}  Qc7 {[%clk 0:02:57]} 6. Be3 {[%clk 0:02:46]}  a6 {[%clk 0:02:57]} 7. Qd2 {[%clk 0:02:36]}  Nf6 {[%clk 0:02:54]} 8. f3 {[%clk 0:02:14]}  Bb4 {[%clk 0:02:53]} 9. a3 {[%clk 0:02:09]}  Be7 {[%clk 0:02:51]} 10. Nb3 {[%clk 0:01:50]}  b5 {[%clk 0:02:46]} 11. Rd1 {[%clk 0:01:37]}  Ne5 {[%clk 0:02:35]} 12. Qd4 {[%clk 0:01:01]}  d6 {[%clk 0:02:21]} 13. Qb6 {[%clk 0:00:54]}  Qxb6 {[%clk 0:02:19]} 14. Bxb6 {[%clk 0:00:54]}  O-O {[%clk 0:02:08]} 15. Bc7 {[%clk 0:00:43]}  Ne8 {[%clk 0:01:53]} 16. Ba5 {[%clk 0:00:42]}  Bb7 {[%clk 0:01:49]} 17. Be2 {[%clk 0:00:19]}  Rc8 {[%clk 0:01:40]} 18. O-O {[%clk 0:00:14]}  Nc4 {[%clk 0:01:39]} 19. Bxc4 {[%clk 0:00:12]}  Rxc4 {[%clk 0:01:39]} 20. Bb4 {[%clk 0:00:06]}  Rc7 {[%clk 0:01:07]} 21. Na5 {[%clk 0:00:03]}  Ba8 {[%clk 0:01:04]} 22. Rd3 {[%clk 0:00:03]}  Bf6 {[%clk 0:00:59]} 23. Rfd1 {[%clk 0:00:03]}  Be5 {[%clk 0:00:58]} 24. g3 {[%clk 0:00:02]}  g5 {[%clk 0:00:57]} 0-1


[Site "https://www.chess.com"]

[Event "Titled Tuesday Blitz September 27 Early 2022"]
[White "Sethuraman, S.P."]
[Black "Weetik, Vjacheslav"]
[WhiteFideId "5021596"]
[BlackFideId "4153472"]
[WhiteElo "2425"]
[BlackElo "2469"]
[Result "1-0"]
[Round "11"]
[TimeControl "180+1"]
[Date "2022.09.27"]
[WhiteClock "0:00:46"]
[BlackClock "0:00:05"]

1. d4 {[%clk 0:03:00]}  Nf6 {[%clk 0:03:00]} 2. c4 {[%clk 0:03:01]}  g6 {[%clk 0:03:00]} 3. Nc3 {[%clk 0:03:01]}  Bg7 {[%clk 0:03:01]} 4. e4 {[%clk 0:03:01]}  d6 {[%clk 0:03:01]} 5. h3 {[%clk 0:03:00]}  O-O {[%clk 0:03:02]} 6. Bg5 {[%clk 0:02:59]}  Na6 {[%clk 0:02:56]} 7. Nf3 {[%clk 0:02:56]}  Qe8 {[%clk 0:02:53]} 8. Be2 {[%clk 0:02:53]}  e5 {[%clk 0:02:52]} 9. d5 {[%clk 0:02:53]}  Nh5 {[%clk 0:02:46]} 10. g3 {[%clk 0:02:47]}  f5 {[%clk 0:02:46]} 11. exf5 {[%clk 0:02:33]}  gxf5 {[%clk 0:02:46]} 12. Nh4 {[%clk 0:02:26]}  Nf6 {[%clk 0:02:39]} 13. g4 {[%clk 0:02:09]}  Ne4 {[%clk 0:02:34]} 14. Nxe4 {[%clk 0:02:05]}  fxe4 {[%clk 0:02:35]} 15. Be3 {[%clk 0:02:04]}  Nc5 {[%clk 0:02:27]} 16. Qc2 {[%clk 0:02:01]}  Nd3+ {[%clk 0:02:02]} 17. Bxd3 {[%clk 0:01:59]}  exd3 {[%clk 0:02:02]} 18. Qxd3 {[%clk 0:01:59]}  e4 {[%clk 0:02:03]} 19. Qc2 {[%clk 0:01:59]}  b5 {[%clk 0:01:42]} 20. c5 {[%clk 0:01:39]}  Qe7 {[%clk 0:00:55]} 21. Ng2 {[%clk 0:01:32]}  Bb7 {[%clk 0:00:30]} 22. O-O-O {[%clk 0:01:31]}  b4 {[%clk 0:00:26]} 23. Nf4 {[%clk 0:01:19]}  Rxf4 {[%clk 0:00:23]} 24. Bxf4 {[%clk 0:01:17]}  dxc5 {[%clk 0:00:24]} 25. Be3 {[%clk 0:01:13]}  Bf8 {[%clk 0:00:16]} 26. Qc4 {[%clk 0:01:07]}  a5 {[%clk 0:00:15]} 27. d6+ {[%clk 0:01:04]}  Qf7 {[%clk 0:00:15]} 28. Qxf7+ {[%clk 0:01:04]}  Kxf7 {[%clk 0:00:16]} 29. dxc7 {[%clk 0:01:04]}  Be7 {[%clk 0:00:09]} 30. Rd7 {[%clk 0:00:57]}  Ke6 {[%clk 0:00:09]} 31. Rhd1 {[%clk 0:00:57]}  Rc8 {[%clk 0:00:09]} 32. Bf4 {[%clk 0:00:54]}  c4 {[%clk 0:00:05]} 33. R7d4 {[%clk 0:00:46]}  Ba6 {[%clk 0:00:05]} 34. Rd6+ {[%clk 0:00:45]}  Bxd6 {[%clk 0:00:05]} 35. Rxd6+ {[%clk 0:00:46]} 1-0


[Site "https://www.chess.com"]

[Event "Titled Tuesday Blitz September 27 Early 2022"]
[White "Shivika, Rohilla"]
[Black "Samaganova, Aleksandra"]
[WhiteFideId "45015414"]
[BlackFideId "13800221"]
[WhiteElo "1605"]
[BlackElo "1864"]
[Result "1-0"]
[Round "11"]
[TimeControl "180+1"]
[Date "2022.09.27"]
[WhiteClock "0:00:28"]
[BlackClock "0:00:01"]

1. e4 {[%clk 0:03:00]}  c5 {[%clk 0:02:57]} 2. Nf3 {[%clk 0:02:56]}  e6 {[%clk 0:02:56]} 3. c3 {[%clk 0:02:54]}  Nf6 {[%clk 0:02:56]} 4. e5 {[%clk 0:02:52]}  Nd5 {[%clk 0:02:56]} 5. d4 {[%clk 0:02:52]}  cxd4 {[%clk 0:02:56]} 6. cxd4 {[%clk 0:02:53]}  d6 {[%clk 0:02:56]} 7. Nc3 {[%clk 0:02:54]}  Nxc3 {[%clk 0:02:55]} 8. bxc3 {[%clk 0:02:53]}  Nc6 {[%clk 0:02:55]} 9. Bb5 {[%clk 0:02:51]}  Bd7 {[%clk 0:02:53]} 10. exd6 {[%clk 0:02:43]}  Bxd6 {[%clk 0:02:51]} 11. O-O {[%clk 0:02:43]}  O-O {[%clk 0:02:48]} 12. Bg5 {[%clk 0:02:41]}  Be7 {[%clk 0:02:44]} 13. Bxe7 {[%clk 0:02:40]}  Nxe7 {[%clk 0:02:40]} 14. Bxd7 {[%clk 0:02:39]}  Qxd7 {[%clk 0:02:41]} 15. Ne5 {[%clk 0:02:40]}  Qc7 {[%clk 0:02:38]} 16. Qf3 {[%clk 0:02:37]}  Rac8 {[%clk 0:02:30]} 17. Rfc1 {[%clk 0:02:35]}  Nf5 {[%clk 0:02:24]} 18. h3 {[%clk 0:02:28]}  Rfd8 {[%clk 0:02:15]} 19. g4 {[%clk 0:02:03]}  Nh4 {[%clk 0:01:57]} 20. Qg3 {[%clk 0:01:57]}  Ng6 {[%clk 0:01:56]} 21. f4 {[%clk 0:01:39]}  Nxe5 {[%clk 0:01:39]} 22. fxe5 {[%clk 0:01:38]}  Qc4 {[%clk 0:01:27]} 23. a4 {[%clk 0:01:30]}  b6 {[%clk 0:01:19]} 24. g5 {[%clk 0:01:15]}  Qe2 {[%clk 0:01:05]} 25. Rf1 {[%clk 0:01:11]}  Qd2 {[%clk 0:00:52]} 26. Ra3 {[%clk 0:01:07]}  Qb2 {[%clk 0:00:46]} 27. Rfa1 {[%clk 0:00:58]}  Rc4 {[%clk 0:00:33]} 28. Qf2 {[%clk 0:00:53]}  Qxf2+ {[%clk 0:00:23]} 29. Kxf2 {[%clk 0:00:50]}  Rdc8 {[%clk 0:00:23]} 30. a5 {[%clk 0:00:48]}  b5 {[%clk 0:00:19]} 31. a6 {[%clk 0:00:47]}  g6 {[%clk 0:00:09]} 32. Ra5 {[%clk 0:00:43]}  b4 {[%clk 0:00:07]} 33. cxb4 {[%clk 0:00:41]}  Rxb4 {[%clk 0:00:07]} 34. d5 {[%clk 0:00:40]}  Rb2+ {[%clk 0:00:05]} 35. Ke3 {[%clk 0:00:39]}  exd5 {[%clk 0:00:04]} 36. Rxd5 {[%clk 0:00:37]}  Rb3+ {[%clk 0:00:04]} 37. Kd2 {[%clk 0:00:37]}  Rxh3 {[%clk 0:00:03]} 38. Rd7 {[%clk 0:00:37]}  Rh2+ {[%clk 0:00:03]} 39. Kd3 {[%clk 0:00:36]}  Rh3+ {[%clk 0:00:03]} 40. Kd4 {[%clk 0:00:36]}  Ra8 {[%clk 0:00:02]} 41. Rf1 {[%clk 0:00:35]}  Ra3 {[%clk 0:00:01]} 42. Rfxf7 {[%clk 0:00:34]}  Ra4+ {[%clk 0:00:01]} 43. Kc5 {[%clk 0:00:34]}  Rxa6 {[%clk 0:00:02]} 44. Rg7+ {[%clk 0:00:33]}  Kf8 {[%clk 0:00:02]} 45. Rxh7 {[%clk 0:00:34]}  Ke8 {[%clk 0:00:02]} 46. Rde7+ {[%clk 0:00:33]}  Kd8 {[%clk 0:00:03]} 47. Reg7 {[%clk 0:00:33]}  Rc8+ {[%clk 0:00:02]} 48. Kd4 {[%clk 0:00:32]}  Re6 {[%clk 0:00:01]} 49. Rh8+ {[%clk 0:00:30]}  Re8 {[%clk 0:00:02]} 50. Rxe8+ {[%clk 0:00:29]}  Kxe8 {[%clk 0:00:02]} 51. Rxa7 {[%clk 0:00:29]}  Kf8 {[%clk 0:00:02]} 52. Ra6 {[%clk 0:00:29]}  Kf7 {[%clk 0:00:01]} 53. e6+ {[%clk 0:00:30]}  Kg7 {[%clk 0:00:01]} 54. Ke5 {[%clk 0:00:29]}  Rc1 {[%clk 0:00:01]} 55. Ra7+ {[%clk 0:00:29]}  Kg8 {[%clk 0:00:01]} 56. Kf6 {[%clk 0:00:29]}  Re1 {[%clk 0:00:01]} 57. e7 {[%clk 0:00:28]} 1-0


[Site "https://www.chess.com"]

[Event "Titled Tuesday Blitz September 27 Early 2022"]
[White "Stanisz, Patryk"]
[Black "Chernomordik, Pavel"]
[WhiteFideId "1123106"]
[BlackFideId "2804530"]
[WhiteElo "1833"]
[BlackElo "2217"]
[Result "0-1"]
[Round "11"]
[TimeControl "180+1"]
[Date "2022.09.27"]
[WhiteClock "0:00:07"]
[BlackClock "0:00:15"]

1. d4 {[%clk 0:03:00]}  g6 {[%clk 0:02:59]} 2. c4 {[%clk 0:02:59]}  Bg7 {[%clk 0:02:59]} 3. Nc3 {[%clk 0:02:59]}  d6 {[%clk 0:02:59]} 4. e4 {[%clk 0:02:58]}  c6 {[%clk 0:02:59]} 5. Bd3 {[%clk 0:02:56]}  Bxd4 {[%clk 0:02:55]} 6. Nge2 {[%clk 0:02:51]}  Bg7 {[%clk 0:02:54]} 7. O-O {[%clk 0:02:51]}  Nf6 {[%clk 0:02:53]} 8. Bg5 {[%clk 0:02:44]}  O-O {[%clk 0:02:52]} 9. Qd2 {[%clk 0:02:44]}  Nbd7 {[%clk 0:02:49]} 10. Bh6 {[%clk 0:02:42]}  Ne5 {[%clk 0:02:44]} 11. Bxg7 {[%clk 0:02:42]}  Kxg7 {[%clk 0:02:44]} 12. f4 {[%clk 0:02:43]}  Nxd3 {[%clk 0:02:36]} 13. Qxd3 {[%clk 0:02:44]}  Qb6+ {[%clk 0:02:30]} 14. Kh1 {[%clk 0:02:41]}  Ng4 {[%clk 0:02:29]} 15. Qf3 {[%clk 0:02:04]}  Qe3 {[%clk 0:02:27]} 16. h3 {[%clk 0:01:45]}  Qxf3 {[%clk 0:02:25]} 17. Rxf3 {[%clk 0:01:46]}  Nf6 {[%clk 0:02:24]} 18. Rd1 {[%clk 0:01:47]}  Be6 {[%clk 0:02:19]} 19. b3 {[%clk 0:01:47]}  Rfd8 {[%clk 0:02:11]} 20. Nd4 {[%clk 0:01:48]}  Bc8 {[%clk 0:02:09]} 21. g4 {[%clk 0:01:47]}  a6 {[%clk 0:02:02]} 22. Kg2 {[%clk 0:01:46]}  Nd7 {[%clk 0:02:00]} 23. Rf2 {[%clk 0:01:36]}  e5 {[%clk 0:01:41]} 24. Nde2 {[%clk 0:01:21]}  exf4 {[%clk 0:01:22]} 25. Rxd6 {[%clk 0:01:20]}  g5 {[%clk 0:01:21]} 26. Nd4 {[%clk 0:01:13]}  Re8 {[%clk 0:01:16]} 27. Nf5+ {[%clk 0:01:07]}  Kf8 {[%clk 0:01:13]} 28. Rfd2 {[%clk 0:00:37]}  Nc5 {[%clk 0:01:09]} 29. Rf6 {[%clk 0:00:24]}  Bxf5 {[%clk 0:00:57]} 30. exf5 {[%clk 0:00:20]}  Rad8 {[%clk 0:00:49]} 31. Rfd6 {[%clk 0:00:20]}  Rxd6 {[%clk 0:00:47]} 32. Rxd6 {[%clk 0:00:19]}  Re3 {[%clk 0:00:45]} 33. Nd1 {[%clk 0:00:09]}  Re2+ {[%clk 0:00:38]} 34. Kf3 {[%clk 0:00:07]}  Re5 {[%clk 0:00:33]} 35. f6 {[%clk 0:00:02]}  Ke8 {[%clk 0:00:26]} 36. Kf2 {[%clk 0:00:02]}  Ne4+ {[%clk 0:00:25]} 37. Kf3 {[%clk 0:00:01]}  Nxd6 {[%clk 0:00:26]} 38. Kf2 {[%clk 0:00:02]}  Ne4+ {[%clk 0:00:22]} 39. Kf3 {[%clk 0:00:02]}  Nxf6 {[%clk 0:00:23]} 40. Kf2 {[%clk 0:00:03]}  Ne4+ {[%clk 0:00:22]} 41. Kf3 {[%clk 0:00:03]}  Nd2+ {[%clk 0:00:22]} 42. Kf2 {[%clk 0:00:03]}  Ke7 {[%clk 0:00:19]} 43. Nb2 {[%clk 0:00:04]}  Ne4+ {[%clk 0:00:17]} 44. Kf3 {[%clk 0:00:04]}  Nc3 {[%clk 0:00:18]} 45. Nd3 {[%clk 0:00:04]}  Re3+ {[%clk 0:00:17]} 46. Kf2 {[%clk 0:00:05]}  Rxd3 {[%clk 0:00:18]} 47. h4 {[%clk 0:00:06]}  Ne4+ {[%clk 0:00:17]} 48. Ke2 {[%clk 0:00:06]}  Re3+ {[%clk 0:00:17]} 49. Kd1 {[%clk 0:00:07]}  f3 {[%clk 0:00:15]} 0-1


[Site "https://www.chess.com"]

[Event "Titled Tuesday Blitz September 27 Early 2022"]
[White "Svane, Frederik"]
[Black "Oparin, Grigoriy"]
[WhiteFideId "12923044"]
[BlackFideId "24125890"]
[WhiteElo "2459"]
[BlackElo "2639"]
[Result "0-1"]
[Round "11"]
[TimeControl "180+1"]
[Date "2022.09.27"]
[WhiteClock "0:00:08"]
[BlackClock "0:01:22"]

1. a3 {[%clk 0:03:00]}  a5 {[%clk 0:02:57]} 2. d4 {[%clk 0:03:00]}  Nf6 {[%clk 0:02:56]} 3. c4 {[%clk 0:02:55]}  e6 {[%clk 0:02:56]} 4. Nc3 {[%clk 0:02:55]}  d5 {[%clk 0:02:56]} 5. cxd5 {[%clk 0:02:55]}  exd5 {[%clk 0:02:54]} 6. Bg5 {[%clk 0:02:55]}  c6 {[%clk 0:02:53]} 7. e3 {[%clk 0:02:51]}  Be7 {[%clk 0:02:50]} 8. Bd3 {[%clk 0:02:49]}  O-O {[%clk 0:02:51]} 9. Qc2 {[%clk 0:02:49]}  Nbd7 {[%clk 0:02:50]} 10. Nf3 {[%clk 0:02:45]}  Re8 {[%clk 0:02:50]} 11. O-O {[%clk 0:02:45]}  h6 {[%clk 0:02:44]} 12. Bh4 {[%clk 0:02:38]}  Ne4 {[%clk 0:02:40]} 13. Bxe7 {[%clk 0:02:20]}  Qxe7 {[%clk 0:02:41]} 14. Bxe4 {[%clk 0:02:21]}  dxe4 {[%clk 0:02:41]} 15. Nd2 {[%clk 0:02:21]}  Nf6 {[%clk 0:02:32]} 16. Nc4 {[%clk 0:02:09]}  Bf5 {[%clk 0:02:17]} 17. Nb6 {[%clk 0:01:54]}  Rad8 {[%clk 0:02:16]} 18. Nca4 {[%clk 0:01:43]}  Nd5 {[%clk 0:02:04]} 19. Nxd5 {[%clk 0:01:40]}  Rxd5 {[%clk 0:02:05]} 20. Nc3 {[%clk 0:01:17]}  Rd6 {[%clk 0:02:04]} 21. f4 {[%clk 0:01:09]}  h5 {[%clk 0:01:55]} 22. b4 {[%clk 0:00:44]}  axb4 {[%clk 0:01:52]} 23. axb4 {[%clk 0:00:44]}  Rg6 {[%clk 0:01:52]} 24. b5 {[%clk 0:00:42]}  h4 {[%clk 0:01:51]} 25. bxc6 {[%clk 0:00:41]}  Rxc6 {[%clk 0:01:45]} 26. Qb2 {[%clk 0:00:25]}  h3 {[%clk 0:01:45]} 27. g3 {[%clk 0:00:19]}  Rec8 {[%clk 0:01:45]} 28. Rfc1 {[%clk 0:00:12]}  Qc7 {[%clk 0:01:40]} 29. Ne2 {[%clk 0:00:08]}  Rc2 {[%clk 0:01:32]} 30. Qa3 {[%clk 0:00:08]}  Bg4 {[%clk 0:01:22]} 0-1


[Site "https://www.chess.com"]

[Event "Titled Tuesday Blitz September 27 Early 2022"]
[White "Szente Varga, Fruzsina"]
[Black "D`Arruda, Ricardo D."]
[WhiteFideId "712264"]
[BlackFideId "100692"]
[WhiteElo "1994"]
[BlackElo "2452"]
[Result "1-0"]
[Round "11"]
[TimeControl "180+1"]
[Date "2022.09.27"]
[WhiteClock "0:00:20"]
[BlackClock "0:00:14"]

1. e4 {[%clk 0:03:00]}  c5 {[%clk 0:00:42]} 2. Nf3 {[%clk 0:03:00]}  Nc6 {[%clk 0:00:41]} 3. Bb5 {[%clk 0:03:00]}  Qb6 {[%clk 0:00:39]} 4. Nc3 {[%clk 0:02:59]}  a6 {[%clk 0:00:38]} 5. Bxc6 {[%clk 0:02:54]}  Qxc6 {[%clk 0:00:39]} 6. O-O {[%clk 0:02:53]}  d6 {[%clk 0:00:40]} 7. d4 {[%clk 0:02:53]}  cxd4 {[%clk 0:00:39]} 8. Nxd4 {[%clk 0:02:54]}  Qc7 {[%clk 0:00:39]} 9. f4 {[%clk 0:02:54]}  e6 {[%clk 0:00:40]} 10. Kh1 {[%clk 0:02:53]}  Nf6 {[%clk 0:00:41]} 11. f5 {[%clk 0:02:35]}  Be7 {[%clk 0:00:42]} 12. fxe6 {[%clk 0:02:35]}  fxe6 {[%clk 0:00:42]} 13. Bg5 {[%clk 0:02:33]}  O-O {[%clk 0:00:43]} 14. Qd2 {[%clk 0:02:25]}  Bd7 {[%clk 0:00:43]} 15. Rad1 {[%clk 0:02:17]}  Rae8 {[%clk 0:00:43]} 16. Nf3 {[%clk 0:02:03]}  Bc6 {[%clk 0:00:42]} 17. Bxf6 {[%clk 0:01:42]}  Rxf6 {[%clk 0:00:43]} 18. Nd4 {[%clk 0:01:38]}  Bd7 {[%clk 0:00:42]} 19. e5 {[%clk 0:01:17]}  dxe5 {[%clk 0:00:41]} 20. Nf3 {[%clk 0:01:18]}  Bc6 {[%clk 0:00:39]} 21. Qe3 {[%clk 0:01:18]}  Bd6 {[%clk 0:00:38]} 22. Ne4 {[%clk 0:01:16]}  Bxe4 {[%clk 0:00:38]} 23. Qxe4 {[%clk 0:01:17]}  Ref8 {[%clk 0:00:37]} 24. Rfe1 {[%clk 0:01:14]}  Rf4 {[%clk 0:00:37]} 25. Qe3 {[%clk 0:01:10]}  R4f5 {[%clk 0:00:32]} 26. Qd2 {[%clk 0:01:01]}  Bc5 {[%clk 0:00:31]} 27. Qc3 {[%clk 0:00:51]}  Bd6 {[%clk 0:00:29]} 28. Qd3 {[%clk 0:00:47]}  Bc5 {[%clk 0:00:28]} 29. Qe4 {[%clk 0:00:45]}  Bd6 {[%clk 0:00:25]} 30. c3 {[%clk 0:00:38]}  h6 {[%clk 0:00:25]} 31. Qa4 {[%clk 0:00:35]}  Bc5 {[%clk 0:00:24]} 32. Qb3 {[%clk 0:00:35]}  R8f6 {[%clk 0:00:20]} 33. Qc4 {[%clk 0:00:29]}  b5 {[%clk 0:00:18]} 34. Qe4 {[%clk 0:00:29]}  Bf2 {[%clk 0:00:18]} 35. Re2 {[%clk 0:00:27]}  Bc5 {[%clk 0:00:18]} 36. h3 {[%clk 0:00:24]}  Bd6 {[%clk 0:00:17]} 37. Qa8+ {[%clk 0:00:21]}  Kh7 {[%clk 0:00:17]} 38. Qxa6 {[%clk 0:00:22]}  Rf4 {[%clk 0:00:18]} 39. Qxd6 {[%clk 0:00:21]}  Qxd6 {[%clk 0:00:17]} 40. Rxd6 {[%clk 0:00:22]}  e4 {[%clk 0:00:17]} 41. Nd4 {[%clk 0:00:21]}  Rf1+ {[%clk 0:00:17]} 42. Kh2 {[%clk 0:00:21]}  e5 {[%clk 0:00:14]} 43. Nxb5 {[%clk 0:00:20]}  Rxd6 {[%clk 0:00:14]} 44. Nxd6 {[%clk 0:00:20]} 1-0


[Site "https://www.chess.com"]

[Event "Titled Tuesday Blitz September 27 Early 2022"]
[White "Sztokbant, Bernardo Vainzoff"]
[Black "Rivas Garcia, Victor"]
[WhiteFideId "2115956"]
[BlackFideId "2217740"]
[WhiteElo "2172"]
[BlackElo "2317"]
[Result "1-0"]
[Round "11"]
[TimeControl "180+1"]
[Date "2022.09.27"]
[WhiteClock "0:00:40"]
[BlackClock "0:01:07"]

1. d4 {[%clk 0:03:00]}  f5 {[%clk 0:02:58]} 2. Nc3 {[%clk 0:02:59]}  Nf6 {[%clk 0:02:58]} 3. g3 {[%clk 0:02:56]}  e6 {[%clk 0:02:56]} 4. Bg2 {[%clk 0:02:56]}  Bb4 {[%clk 0:02:56]} 5. Nh3 {[%clk 0:02:54]}  Bxc3+ {[%clk 0:02:54]} 6. bxc3 {[%clk 0:02:54]}  O-O {[%clk 0:02:54]} 7. O-O {[%clk 0:02:55]}  d6 {[%clk 0:02:54]} 8. f3 {[%clk 0:02:55]}  e5 {[%clk 0:02:51]} 9. Nf2 {[%clk 0:02:50]}  Nc6 {[%clk 0:02:47]} 10. e4 {[%clk 0:02:49]}  fxe4 {[%clk 0:02:46]} 11. fxe4 {[%clk 0:02:49]}  Bd7 {[%clk 0:02:44]} 12. Rb1 {[%clk 0:02:48]}  b6 {[%clk 0:02:43]} 13. Be3 {[%clk 0:02:44]}  Kh8 {[%clk 0:02:42]} 14. Qe2 {[%clk 0:02:28]}  Qe7 {[%clk 0:02:41]} 15. Rbe1 {[%clk 0:02:19]}  Rae8 {[%clk 0:02:40]} 16. d5 {[%clk 0:02:09]}  Nb8 {[%clk 0:02:36]} 17. Bg5 {[%clk 0:02:07]}  h6 {[%clk 0:02:31]} 18. Be3 {[%clk 0:02:02]}  Ba4 {[%clk 0:02:28]} 19. Bh3 {[%clk 0:01:55]}  Bd7 {[%clk 0:02:26]} 20. Bxd7 {[%clk 0:01:50]}  Nbxd7 {[%clk 0:02:25]} 21. Kg2 {[%clk 0:01:45]}  Nc5 {[%clk 0:02:19]} 22. Bxc5 {[%clk 0:01:44]}  bxc5 {[%clk 0:02:16]} 23. Ng4 {[%clk 0:01:45]}  Rb8 {[%clk 0:02:14]} 24. Ne3 {[%clk 0:01:30]}  g6 {[%clk 0:02:11]} 25. Ng4 {[%clk 0:01:28]}  Kg7 {[%clk 0:02:11]} 26. Nxf6 {[%clk 0:01:26]}  Rxf6 {[%clk 0:02:11]} 27. Rxf6 {[%clk 0:01:27]}  Kxf6 {[%clk 0:02:03]} 28. Rf1+ {[%clk 0:01:28]}  Kg7 {[%clk 0:02:03]} 29. Qa6 {[%clk 0:01:24]}  Rb2 {[%clk 0:02:00]} 30. Rf2 {[%clk 0:01:23]}  h5 {[%clk 0:01:47]} 31. Qxa7 {[%clk 0:01:16]}  Kh6 {[%clk 0:01:36]} 32. Qa8 {[%clk 0:01:13]}  Kg7 {[%clk 0:01:32]} 33. a4 {[%clk 0:01:11]}  h4 {[%clk 0:01:31]} 34. gxh4 {[%clk 0:01:10]}  g5 {[%clk 0:01:18]} 35. h5 {[%clk 0:01:06]}  g4 {[%clk 0:01:15]} 36. h6+ {[%clk 0:00:58]}  Kh7 {[%clk 0:01:09]} 37. a5 {[%clk 0:00:45]}  Ra2 {[%clk 0:01:07]} 38. a6 {[%clk 0:00:40]} 1-0


[Site "https://www.chess.com"]

[Event "Titled Tuesday Blitz September 27 Early 2022"]
[White "Tari, Aryan"]
[Black "Nigmatov, Ortik"]
[WhiteFideId "1510045"]
[BlackFideId "14202131"]
[WhiteElo "2612"]
[BlackElo "2378"]
[Result "1-0"]
[Round "11"]
[TimeControl "180+1"]
[Date "2022.09.27"]
[WhiteClock "0:00:36"]
[BlackClock "0:00:47"]

1. e4 {[%clk 0:03:00]}  c5 {[%clk 0:02:59]} 2. Nc3 {[%clk 0:02:59]}  e6 {[%clk 0:02:58]} 3. d4 {[%clk 0:02:59]}  cxd4 {[%clk 0:02:58]} 4. Qxd4 {[%clk 0:02:59]}  Nc6 {[%clk 0:02:57]} 5. Qd3 {[%clk 0:03:00]}  a6 {[%clk 0:02:56]} 6. Bf4 {[%clk 0:03:00]}  d6 {[%clk 0:02:53]} 7. O-O-O {[%clk 0:02:58]}  e5 {[%clk 0:02:53]} 8. Be3 {[%clk 0:02:51]}  Be6 {[%clk 0:02:53]} 9. f4 {[%clk 0:02:47]}  Rc8 {[%clk 0:02:48]} 10. Kb1 {[%clk 0:02:07]}  Qa5 {[%clk 0:02:38]} 11. Qd2 {[%clk 0:02:00]}  Nf6 {[%clk 0:02:24]} 12. f5 {[%clk 0:01:59]}  Bd7 {[%clk 0:02:24]} 13. Bc4 {[%clk 0:01:40]}  Qb4 {[%clk 0:02:04]} 14. Bb3 {[%clk 0:01:32]}  Nxe4 {[%clk 0:01:58]} 15. Qd5 {[%clk 0:01:08]}  Nxc3+ {[%clk 0:01:46]} 16. bxc3 {[%clk 0:01:08]}  Qxc3 {[%clk 0:01:46]} 17. Qxf7+ {[%clk 0:01:08]}  Kd8 {[%clk 0:01:47]} 18. Bb6+ {[%clk 0:01:08]}  Rc7 {[%clk 0:01:48]} 19. f6 {[%clk 0:01:08]}  e4 {[%clk 0:01:36]} 20. Ne2 {[%clk 0:00:47]}  Qxf6 {[%clk 0:01:36]} 21. Rhf1 {[%clk 0:00:48]}  Qe5 {[%clk 0:01:13]} 22. Nf4 {[%clk 0:00:41]}  Ne7 {[%clk 0:00:53]} 23. Qc4 {[%clk 0:00:40]}  Bc8 {[%clk 0:00:47]} 24. Qxc7+ {[%clk 0:00:36]} 1-0


[Site "https://www.chess.com"]